Workbook

Sheet Настройки
B2: Адрес сервиса | C2: https://analizbankov.ru/api/
B3: Ключ (key)

Sheet Помощь
C2: Назначение данной рабочей книги
C3:  Программа предназначена для просмотра информации из базы данных сайта analizbankov.ru
C4:  Используется сервис API Банки
C5:  Проводится демонстрация возможностей API Банки, которые можно использовать в собственных разработках
C7: Как использовать программу
C8:  Задайте ключ для использования сервиса на листе "Настройки" (его можно получить бесплатно, зарегистрировавшись на сайте)
C9:  Перейдите на лист, соответствующий методу API, протестируйте с различными параметрами.
C10:  Используйте макросы из этой рабочей книги в собственных разработках

Sheet bankinfo и bankdata
A1: Рег. номер: | B1: 1326 | C1: - введите номер
A2: Банк | B2: АЛЬФА-БАНК | I2: * при пересчете потратится 26 запросов bankdata
A3: КраткНаим | B3: АО "АЛЬФА-БАНК" | D3: Динамика активов и прибыли банка (поквартально)
A4: ПолнНаим | B4: АКЦИОНЕРНОЕ ОБЩЕСТВО «АЛЬФА-БАНК» | C4: Код | D4: Дата: | E4: 2016-01-01 | F4: 2016-04-01 | G4: 2016-07-01 | H4: 2016-10-01 | I4: 2017-01-01 | J4: 2017-04-01 | K4: 2017-07-01 | L4: 2017-10-01 | M4: 2018-01-01 | N4: 2018-04-01 | O4: 2018-07-01 | P4: 2018-10-01 | Q4: 2019-01-01
C5: Аагр | D5: Активы | E5: =get_bankdata(E$4, $C5, $B$1) -> 2305073493 | F5: 2249444908 | G5: 2247277816 | H5: 2350919875 | I5: 2502460330 | J5: 2407102514 | K5: 2638763685 | L5: 2681994697 | M5: 2707139008 | N5: 2688384934 | O5: 2970834853 | P5: 3196515007 | Q5: 3436874917
A6: Тип | B6: Банк | C6: Прнал | D6: Прибыль | E6: 49591411 | F6: -11930879 | G6: -11782940 | H6: -11617030 | J6: -9836224 | K6: 19273250 | M6: 50686343 | N6: 14136067 | O6: 61354546 | P6: 80647389 | Q6: 110768219
A7: ОПФ | B7: АО | D7: Прибыль кв. | F7: =F6 -> -11930879 | G7: =G6-F6 -> 147939 | H7: =H6-G6 -> 165910 | J7: =J6 -> -9836224 | K7: =K6-J6 -> 29109474 | L7: =L6-K6 ->  | M7: =M6-L6 ->  | N7: =N6 -> 14136067 | O7: =O6-N6 -> 47218479 | P7: =P6-O6 -> 19292843 | Q7: =Q6-P6 -> 30120830
A8: ТипЛиц
A9: ДатаРег | B9: 03.01.1991
A10: Адрес | B10: 107078, г. Москва, ул. Каланчевская, д. 27
A12: Телефоны | B12: (495) 620-91-91
A13: Лицензия | B13: Лицензия на привлечение во вклады и размещение драгоценных металлов (16.01.2015) Генеральная лицензия на осуществление банковских операций (16.01.2015)
A18: АСВ | B18: Да
A19: ОГРН | B19: 1027700067328
A22: * при обновлении потратится 1 запрос bankinfo

Sheet bankotch
A1: Рег. номер: | B1: 1326 | C1: - введите номер
A2: Дата: | B2: 2019-01-01 | C2: - введите дату
A3: Структура активов и пассивов
B4: Код | C4: Статья | D4: Значение
A5: Активы | B5: 1ДенДраг | C5: Денежные средства, драгоценные металлы и камни | D5: 90898944
B6: 2СчБР | C6: Счета в Банке России и в уполномоченных органах других стран | D6: 118192454
B7: 3КорСчА | C7: Корреспондентские счета в кредитных организациях | D7: 58846116
B8: 4ЦБА | C8: Ценные бумаги, приобретенные банками | D8: 526570284
B9: 5ПрочУчУК | C9: Прочее участие в уставных капиталах | D9: 3693800
B10: 6ПрзИнстр | C10: Производные финансовые инструменты | D10: 49695961
B11: 7Кредиты | C11: Кредиты и прочие ссуды | D11: 2430572719
B12: 8ОснСр | C12: Основные средства, прочая недвижимость, нематериальные активы и материальные запасы | D12: 27268153
B13: 9ИспПриб | C13: Использование прибыли | D13: 14995310
B14: 10ПрочАкт | C14: Прочие активы | D14: 116141176
A16: Пассивы | B16: 1ФондыПриб | C16: Фонды и прибыль кредитных организаций | D16: 375023193
B17: 2ДепЦБ | C17: Кредиты, депозиты и прочие привлеченные средства, полученные кредитными организациями от Банка России | D17: 7946804
B18: 3СчБанков | C18: Счета кредитных организаций | D18: 38650699
B19: 4ДепБанков | C19: Кредиты, депозиты и прочие средства, полученные от других кредитных организаций | D19: 165025361
B20: 5СредКл | C20: Средства клиентов | D20: 2422485646
B21: 6Облигации | C21: Облигации | D21: 80840406
B22: 7Векселя | C22: Векселя и банковские акцепты | D22: 26100909
B23: 8ПрзИнстр | C23: Производные финансовые инструменты | D23: 29098683
B24: 9ПрочП | C24: Прочие пассивы | D24: 291703216

Sheet banksrait и pokinfo
A1: Код показателя | B1: ПКЛ | C1: - введите код показателя и дату
A2: Дата: | B2: 2019-01-01 | H2: * при обновлении потратится 1 запрос banksrait
A3: pokid | B3: 6618 | D3: Рейтинг банков
A4: ПолнНаим | B4: Экспертная надежность банка | D4: РегНом | E4: Банк | F4: Сумма | H4: - вы можете отсортировать данные средствами Excel
D5: 520 | E5: ФИНАНС БИЗНЕС БАНК | F5: 0.07232859756
A6: Размерность | B6: % | D6: 3224 | E6: БАНК "СКС" | F6: 0.1044846016
A7: Комментарий | B7: На основе Указания №3269-У от 31.05.2014 (очень приблизительный расчет Показателя краткосрочной ликвидности «Базель III» на основе балансовых данных). Критическим можно считать значение менее 50% | D7: 2304 | E7: ТАВРИЧЕСКИЙ | F7: 0.1409397778
D8: 2638 | E8: ПРОМТРАНСБАНК | F8: 0.1748194737
A9: poktype | B9: expert | D9: 121 | E9: ЦЕНТРОКРЕДИТ | F9: 0.2159475686
A10: ДатаВвода | B10: 01.01.2012 | D10: 1132 | E10: СОЦИНВЕСТБАНК | F10: 0.2351809904
A11: parent_pokid | B11: КРНОРМ | D11: 1978 | E11: МОСКОВСКИЙ КРЕДИТНЫЙ БАНК | F11: 0.2405096634
A12: Формула | B12: {ВЛАкорр}/{ЧООДС} | D12: 2289 | E12: РУССКИЙ СТАНДАРТ | F12: 0.2419280882
D13: 912 | E13: МОСКОВСКИЙ ИНДУСТРИАЛЬНЫЙ БАНК | F13: 0.2884033329
D14: 2618 | E14: МЕЖДУНАРОДНЫЙ ФИНАНСОВЫЙ КЛУБ | F14: 0.3042937583
D15: 2275 | E15: УРАЛСИБ | F15: 0.3131367155
D16: 436 | E16: БАНК "САНКТ-ПЕТЕРБУРГ" | F16: 0.3475304292
D17: 588 | E17: СУРГУТНЕФТЕГАЗБАНК | F17: 0.3486169492
D18: 1751 | E18: МОСКОВСКИЙ ОБЛАСТНОЙ БАНК | F18: 0.3616343167
D19: 3245 | E19: СИАБ | F19: 0.4037892394
D20: 2763 | E20: ИНВЕСТТОРГБАНК | F20: 0.4242386621
D21: 3518 | E21: ПЭЙЮ | F21: 0.4335387301
A22: * при обновлении потратится 1 запрос pokinfo | D22: 3421 | E22: НАЦИОНАЛЬНЫЙ СТАНДАРТ | F22: 0.4490965238
D23: 2119 | E23: АЛЕФ-БАНК | F23: 0.4589995992
D24: 2268 | E24: МТС-БАНК | F24: 0.4693046343
D25: 963 | E25: СОВКОМБАНК | F25: 0.4743723963
D26: 1557 | E26: ВУЗ-БАНК | F26: 0.4813065864
D27: 1000 | E27: ВТБ | F27: 0.5043221868
D28: 3511 | E28: ДЕНЬГИ.МЭЙЛ.РУ | F28: 0.5143456041
D29: 3437 | E29: НФК | F29: 0.5245071641
D30: 3330 | E30: ДЕНИЗБАНК МОСКВА | F30: 0.536779543
D31: 2807 | E31: ТРАНССТРОЙБАНК | F31: 0.5674483751
D32: 3251 | E32: ПРОМСВЯЗЬБАНК | F32: 0.5918197165
D33: 429 | E33: УРАЛЬСКИЙ БАНК РЕКОНСТРУКЦИИ И РАЗВИТИЯ | F33: 0.6366545779
D34: 2748 | E34: БМ-БАНК | F34: 0.6446641701
D35: 3294 | E35: НРД | F35: 0.6587143467
D36: 3255 | E36: БАНК ЗЕНИТ | F36: 0.6587856783
D37: 1398 | E37: РОСКОМСНАББАНК | F37: 0.6729139745
D38: 53 | E38: АЛЕКСАНДРОВСКИЙ | F38: 0.6738184745
D39: 3466 | E39: НАЦИОНАЛЬНЫЙ КЛИРИНГОВЫЙ ЦЕНТР | F39: 0.6961277069
D40: 354 | E40: ГАЗПРОМБАНК | F40: 0.7167748363
D41: 1166 | E41: РАДИОТЕХБАНК | F41: 0.7242144185
D42: 2789 | E42: МС БАНК РУС | F42: 0.7296339963
D43: 328 | E43: РОССИЯ | F43: 0.7412283576
D44: 2210 | E44: ТРАНСКАПИТАЛБАНК | F44: 0.7419417498
D45: 2306 | E45: АБСОЛЮТ БАНК | F45: 0.7492298946
D46: 1792 | E46: РУСФИНАНС БАНК | F46: 0.7585821776
D47: 2766 | E47: ОТП БАНК | F47: 0.7609200694
D48: 3314 | E48: МОСКОВСКИЙ КЛИРИНГОВЫЙ ЦЕНТР | F48: 0.7674836103
D49: 3340 | E49: МСП БАНК | F49: 0.7705358797
D50: 2998 | E50: ЭКСПОБАНК | F50: 0.7788057744
D51: 1927 | E51: МОДУЛЬБАНК | F51: 0.7871170983
D52: 3085 | E52: ЭКСПРЕСС-ВОЛГА | F52: 0.8024017064
D53: 3431 | E53: ТРОЙКА-Д БАНК | F53: 0.8394368531
D54: 2664 | E54: СЛАВИЯ | F54: 0.8533108044
D55: 2853 | E55: СТОЛИЧНЫЙ КРЕДИТ | F55: 0.8583920127
D56: 1189 | E56: ПЛЮС БАНК | F56: 0.8774744837
D57: 2867 | E57: ИШБАНК | F57: 0.890733047
D58: 3480 | E58: РАМ БАНК | F58: 0.898640063
D59: 3531 | E59: ЦМРБАНК | F59: 0.8996018926
D60: 2272 | E60: РОСБАНК | F60: 0.9235397452
D61: 2929 | E61: ББР БАНК | F61: 0.9244669473
D62: 3529 | E62: ЧАЙНАСЕЛЬХОЗБАНК | F62: 0.9378642339
D63: 2590 | E63: АК БАРС | F63: 0.9600024702
D64: 3303 | E64: АЗИЯ-ИНВЕСТ БАНК | F64: 0.9928284376
D65: 3368 | E65: СЕВЕРНЫЙ МОРСКОЙ ПУТЬ | F65: 1.005245654
D66: 2347 | E66: ПЛАТИНА | F66: 1.018135434
D67: 3287 | E67: ВСЕРОССИЙСКИЙ БАНК РАЗВИТИЯ РЕГИОНОВ | F67: 1.020014452
D68: 1481 | E68: СБЕРБАНК РОССИИ | F68: 1.024983412
D69: 3475 | E69: АЙСИБИСИ БАНК | F69: 1.025022551
D70: 843 | E70: ДАЛЬНЕВОСТОЧНЫЙ БАНК | F70: 1.035042453
D71: 1317 | E71: СОБИНБАНК | F71: 1.036852247
D72: 1 | E72: ЮНИКРЕДИТ БАНК | F72: 1.043175878
D73: 2168 | E73: СЕТЕЛЕМ БАНК | F73: 1.052999626
D74: 2209 | E74: ФК ОТКРЫТИЕ | F74: 1.057863601
D75: 3013 | E75: РАЗВИТИЕ-СТОЛИЦА | F75: 1.058313285
D76: 3499 | E76: ВРБ | F76: 1.063983758
D77: 3311 | E77: КРЕДИТ ЕВРОПА БАНК | F77: 1.070267658
D78: 1329 | E78: СОЛИД БАНК | F78: 1.075050508
D79: 3349 | E79: РОССЕЛЬХОЗБАНК | F79: 1.076386796
D80: 1763 | E80: ИВАНОВО | F80: 1.080098515
D81: 128 | E81: БАЛТИЙСКИЙ БАНК | F81: 1.101704733
D82: 2312 | E82: БАНК ДОМ.РФ | F82: 1.11270078
D83: 2546 | E83: НОВИКОМБАНК | F83: 1.115876549
D84: 2156 | E84: НЕФТЕПРОМБАНК | F84: 1.118700171
D85: 2559 | E85: ЗИРААТ БАНК (МОСКВА) | F85: 1.124543738
D86: 2402 | E86: ЕВРОФИНАНС МОСНАРБАНК | F86: 1.133555045
D87: 1470 | E87: СВЯЗЬ-БАНК | F87: 1.13485769
D88: 3532 | E88: ПЕРСПЕКТИВА | F88: 1.135679824
D89: 3519 | E89: ИКАНО БАНК | F89: 1.161528157
D90: 3508 | E90: МОНЕТА | F90: 1.182200837
D91: 3175 | E91: ИС БАНК | F91: 1.2021811
D92: 77 | E92: МОРСКОЙ БАНК | F92: 1.205300174
D93: 1326 | E93: АЛЬФА-БАНК | F93: 1.212021302
D94: 2646 | E94: БАНК РЕАЛИСТ | F94: 1.21208264
D95: 705 | E95: СКБ-БАНК | F95: 1.212569781
D96: 3312 | E96: ОРГБАНК | F96: 1.2190718
D97: 3401 | E97: РТС-БАНК | F97: 1.223003645
D98: 3194 | E98: СИТИ ИНВЕСТ БАНК | F98: 1.224317731
D99: 3460 | E99: АМЕРИКЭН ЭКСПРЕСС БАНК | F99: 1.23064179
D100: 3509 | E100: ЭЛЕКТРОННЫЙ ПЛАТЕЖНЫЙ СЕРВИС | F100: 1.234321442
D101: 2576 | E101: ГАРАНТ-ИНВЕСТ | F101: 1.255757585
D102: 2 | E102: ВИКИНГ | F102: 1.256533251
D103: 1067 | E103: БАЙКАЛИНВЕСТБАНК | F103: 1.268084056
D104: 2494 | E104: БАНК КРЕДИТ СВИСС (МОСКВА) | F104: 1.270245402
D105: 2738 | E105: ДЕРЖАВА | F105: 1.294078987
D106: 524 | E106: ВЕНЕЦ | F106: 1.295213729
D107: 2673 | E107: ТИНЬКОФФ БАНК | F107: 1.29707163
D108: 3124 | E108: НС БАНК | F108: 1.312741527
D109: 3388 | E109: ФИНСЕРВИС | F109: 1.319636693
D110: 1810 | E110: АЗИАТСКО-ТИХООКЕАНСКИЙ БАНК | F110: 1.323140215
D111: 2225 | E111: ЦЕНТР-ИНВЕСТ | F111: 1.329543834
D112: 3490 | E112: ГОЛДМАН САКС БАНК | F112: 1.331010809
D113: 1671 | E113: НЭКЛИС-БАНК | F113: 1.335834532
D114: 2110 | E114: ПЕРЕСВЕТ | F114: 1.336753233
D115: 1354 | E115: РОССИЙСКИЙ НАЦИОНАЛЬНЫЙ КОММЕРЧЕСКИЙ БАНК | F115: 1.343331769
D116: 3265 | E116: МЕГАПОЛИС | F116: 1.343394008
D117: 3396 | E117: МИР БИЗНЕС БАНК | F117: 1.347341629
D118: 2764 | E118: ТЭМБР-БАНК | F118: 1.351785512
D119: 2368 | E119: ВЕСТА | F119: 1.356091942
D120: 3292 | E120: РАЙФФАЙЗЕНБАНК | F120: 1.358100609
D121: 3166 | E121: ПЛАТЕЖНЫЙ ЦЕНТР | F121: 1.364093543
D122: 3365 | E122: МОСКОММЕРЦБАНК | F122: 1.369324593
D123: 1405 | E123: РОСБИЗНЕСБАНК | F123: 1.376543387
D124: 3514 | E124: ПРЕМИУМ | F124: 1.379856113
D125: 3481 | E125: БАНК ПСА ФИНАНС РУС | F125: 1.385738549
D126: 3467 | E126: ЮНИСТРИМ | F126: 1.391438637
D127: 600 | E127: ИНТЕРПРОГРЕССБАНК | F127: 1.430780836
D128: 3403 | E128: РУСНАРБАНК | F128: 1.438797917
D129: 3001 | E129: ПРИМОРЬЕ | F129: 1.452495477
D130: 2443 | E130: МЕТКОМБАНК | F130: 1.459128951
D131: 2949 | E131: ЭКСПЕРТ БАНК | F131: 1.459919542
D132: 2564 | E132: ЯРИНТЕРБАНК | F132: 1.466596436
D133: 650 | E133: ПОЧТА БАНК | F133: 1.467516095
D134: 1071 | E134: СПУТНИК | F134: 1.468910013
D135: 1439 | E135: ВОЗРОЖДЕНИЕ | F135: 1.491797496
D136: 3516 | E136: ОНЕЙ БАНК | F136: 1.495384783
D137: 1460 | E137: ВОСТОЧНЫЙ | F137: 1.50974786
D138: 312 | E138: ВОКБАНК | F138: 1.511950459
D139: 3483 | E139: КРАСНОЯРСКИЙ КРАЕВОЙ РАСЧЕТНЫЙ ЦЕНТР | F139: 1.522479688
D140: 2216 | E140: БАНК ИНТЕЗА | F140: 1.522570157
D141: 3517 | E141: ПЭЙПАЛ РУ | F141: 1.556433163
D142: 567 | E142: АКЦЕПТ | F142: 1.56070461
D143: 435 | E143: БЕСТ ЭФФОРТС БАНК | F143: 1.567186394
D144: 2726 | E144: ВЕСТЕРН ЮНИОН ДП ВОСТОК | F144: 1.569304662
D145: 3524 | E145: РАСЧЕТНЫЕ РЕШЕНИЯ | F145: 1.576641433
D146: 2996 | E146: ПРОКОММЕРЦБАНК | F146: 1.576889971
D147: 3344 | E147: МОСКОВСКОЕ ИПОТЕЧНОЕ АГЕНТСТВО | F147: 1.591252533
D148: 2440 | E148: МЕТАЛЛИНВЕСТБАНК | F148: 1.605718564
D149: 1680 | E149: КРЕДИ АГРИКОЛЬ КИБ | F149: 1.61666311
D150: 2307 | E150: СОЮЗ | F150: 1.616831519
D151: 3296 | E151: ПРОФЕССИОНАЛ БАНК | F151: 1.625929514
D152: 735 | E152: КУРСКПРОМБАНК | F152: 1.630138231
D153: 2758 | E153: ПРАЙМ ФИНАНС | F153: 1.642039617
D154: 3266 | E154: ИНТЕРПРОМБАНК | F154: 1.655533024
D155: 2404 | E155: АПАБАНК | F155: 1.658197178
D156: 2733 | E156: ПРИМСОЦБАНК | F156: 1.660500343
D157: 23 | E157: АВТОВАЗБАНК | F157: 1.662983872
D158: 1720 | E158: ТОМСКПРОМСТРОЙБАНК | F158: 1.666323091
D159: 3354 | E159: РЕНЕССАНС КРЕДИТ | F159: 1.668053262
D160: 21 | E160: ПРИМОРСКИЙ ТЕРРИТОРИАЛЬНЫЙ | F160: 1.684170784
D161: 3525 | E161: КЭБ ЭЙЧЭНБИ БАНК | F161: 1.688185414
D162: 3290 | E162: ЭЙЧ-ЭС-БИ-СИ БАНК (РР) | F162: 1.688842497
D163: 2602 | E163: АЛМАЗЭРГИЭНБАНК | F163: 1.689509422
D164: 3479 | E164: УРИ БАНК | F164: 1.690424912
D165: 3482 | E165: БМВ БАНК | F165: 1.700003547
D166: 3138 | E166: БАНК ЖИЛИЩНОГО ФИНАНСИРОВАНИЯ | F166: 1.701977567
D167: 2518 | E167: КУБАНЬ КРЕДИТ | F167: 1.703661556
D168: 2790 | E168: РОСЭКСИМБАНК | F168: 1.704545644
D169: 3360 | E169: КРАЙИНВЕСТБАНК | F169: 1.714292643
D170: 2868 | E170: КУЗБАССХИМБАНК | F170: 1.714470663
D171: 1885 | E171: ФОРА-БАНК | F171: 1.724182125
D172: 702 | E172: НИКО-БАНК | F172: 1.730321593
D173: 1745 | E173: БЫСТРОБАНК | F173: 1.75181212
D174: 2557 | E174: СИТИБАНК | F174: 1.764431656
D175: 783 | E175: РОЯЛ КРЕДИТ БАНК | F175: 1.768323525
D176: 609 | E176: КУЗНЕЦКИЙ | F176: 1.768465242
D177: 254 | E177: ХЛЫНОВ | F177: 1.786670461
D178: 3454 | E178: ИНКАХРАН | F178: 1.788065733
D179: 1966 | E179: НБД-БАНК | F179: 1.797847593
D180: 2995 | E180: СТРОЙЛЕСБАНК | F180: 1.808313712
D181: 3235 | E181: СЭБ БАНК | F181: 1.809974787
D182: 503 | E182: ХОЛМСК | F182: 1.825887779
D183: 1411 | E183: МОСКОВСКИЙ НЕФТЕХИМИЧЕСКИЙ БАНК | F183: 1.844902683
D184: 965 | E184: ПЕРВОУРАЛЬСКБАНК | F184: 1.862382952
D185: 1455 | E185: АВТОГРАДБАНК | F185: 1.862721545
D186: 3307 | E186: ДАНСКЕ БАНК | F186: 1.875296884
D187: 3512 | E187: ЕДИНАЯ КАССА | F187: 1.877526646
D188: 2309 | E188: БЭНК ОФ ЧАЙНА | F188: 1.909746953
D189: 704 | E189: РУСЬ | F189: 1.922460854
D190: 2241 | E190: КИВИ БАНК | F190: 1.926095925
D191: 415 | E191: АВЕРС | F191: 1.936377402
D192: 2584 | E192: КРЕДИТ УРАЛ БАНК | F192: 1.937727648
D193: 3176 | E193: БАЛТИНВЕСТБАНК | F193: 1.942034254
D194: 2048 | E194: САРОВБИЗНЕСБАНК | F194: 1.968229653
D195: 784 | E195: ПРОФЕССИОНАЛЬНЫЙ ИНВЕСТИЦИОННЫЙ БАНК | F195: 1.970627261
D196: 2254 | E196: КУЗНЕЦКИЙ МОСТ | F196: 1.974218897
D197: 2015 | E197: СИБСОЦБАНК | F197: 1.976832347
D198: 3328 | E198: ДОЙЧЕ БАНК | F198: 1.981568711
D199: 1637 | E199: СДМ-БАНК | F199: 1.985482551
D200: 485 | E200: ЧЕЛИНДБАНК | F200: 1.987290499
... 287 more rows

Sheet listdata
C2: Активы банков на санации в общей банковской системе | J2: * при пересчете потратится 4 запроса bankdata и 4 запроса listdata
C3: 2016-01-01 | D3: 2017-01-01 | E3: 2018-01-01 | F3: 2019-01-01
B4: Санируемые банки | C4: =get_listdata(C3, "Аагр", 20) -> 3882258189 | D4: =get_listdata(D3, "Аагр", 20) -> 2937027226 | E4: =get_listdata(E3, "Аагр", 20) -> 8066562401 | F4: =get_listdata(F3, "Аагр", 20) -> 8868853666
B5: Лидеры (ВТБ, Сбербанк) | C5: =get_listdata(C3, "Аагр", 21) -> 33476647893 | D5: =get_listdata(D3, "Аагр", 21) -> 32866966801 | E5: 34661762859 | F5: 42927470060
B6: Остальные банки | C6: =C7-C4 -> 78079054332 | D6: =D7-D4 -> 75651628831 | E6: =E7-E4 -> 76881688344 | F6: =F7-F4 -> 84938149991
B7: Все банки | C7: =get_bankdata(C3, "Аагр", 30010) -> 81961312521 | D7: 78588656057 | E7: 84948250745 | F7: =get_bankdata(F3, "Аагр", 30010) -> 93807003657
